Workbook

Sheet Лист1
A1: ='[1]4'!A1 -> МАОУ "МАОУ "Лицей№121" | D1: ='[1]4'!$D$1 -> Отд./корп | E1: ='[1]4'!$E$1 -> А.Камалеева,22, Космонавтов,19 | H1: ='[1]4'!$H$1 -> День | I1: 2023-09-12
A2: ='[1]4'!A2 -> Раздел | B2: ='[1]4'!B2 -> № рец. | C2: ='[1]4'!C2 -> Блюдо | D2: ='[1]4'!D2 -> Выход, г | E2: ='[1]4'!E2 -> Цена | F2: ='[1]4'!F2 -> Калорийность | G2: ='[1]4'!G2 -> Белки | H2: ='[1]4'!H2 -> Жиры | I2: ='[1]4'!I2 -> Углеводы
A3: ='[2]1-2, 11-16, 25-30 сент.'!B10 -> гор.блюдо | B3: ='[2]1-2, 11-16, 25-30 сент.'!C10 -> ТТК от 19.07.2023 г | C3: ='[2]1-2, 11-16, 25-30 сент.'!D10 -> Тефтели из говядины в соусе томатном | D3: ='[2]1-2, 11-16, 25-30 сент.'!E10 -> 90 | F3: ='[2]1-2, 11-16, 25-30 сент.'!G10 -> 103 | G3: ='[2]1-2, 11-16, 25-30 сент.'!H10 -> 8.6 | H3: ='[2]1-2, 11-16, 25-30 сент.'!I10 -> 2.8 | I3: ='[2]1-2, 11-16, 25-30 сент.'!J10 -> 10.9
A4: ='[2]1-2, 11-16, 25-30 сент.'!B11 -> гор.блюдо | B4: ='[2]1-2, 11-16, 25-30 сент.'!C11 -> ТТК | C4: ='[2]1-2, 11-16, 25-30 сент.'!D11 -> Картофель запечённый | D4: ='[2]1-2, 11-16, 25-30 сент.'!E11 -> 160 | F4: ='[2]1-2, 11-16, 25-30 сент.'!G11 -> 239 | G4: ='[2]1-2, 11-16, 25-30 сент.'!H11 -> 4.64 | H4: ='[2]1-2, 11-16, 25-30 сент.'!I11 -> 7.71 | I4: ='[2]1-2, 11-16, 25-30 сент.'!J11 -> 37.8
A5: ='[2]1-2, 11-16, 25-30 сент.'!B12 -> гор.напиток | B5: ='[2]1-2, 11-16, 25-30 сент.'!C12 -> ТТК 2021 г | C5: ='[2]1-2, 11-16, 25-30 сент.'!D12 -> Напиток из шиповника | D5: ='[2]1-2, 11-16, 25-30 сент.'!E12 -> 180 | F5: ='[2]1-2, 11-16, 25-30 сент.'!G12 -> 45 | G5: ='[2]1-2, 11-16, 25-30 сент.'!H12 -> 0.69 | H5: ='[2]1-2, 11-16, 25-30 сент.'!I12 -> 0.34 | I5: ='[2]1-2, 11-16, 25-30 сент.'!J12 -> 9.26
A6: ='[2]1-2, 11-16, 25-30 сент.'!B13 -> закуска | B6: ='[2]1-2, 11-16, 25-30 сент.'!C13 -> № 532/2013г, Самара | C6: ='[2]1-2, 11-16, 25-30 сент.'!D13 -> Салат-бар (Огурцы свежая порциями, помидоры, фасоль конс., сухарики, масло раст.) | D6: ='[2]1-2, 11-16, 25-30 сент.'!E13 -> 60 | F6: ='[2]1-2, 11-16, 25-30 сент.'!G13 -> 90 | G6: ='[2]1-2, 11-16, 25-30 сент.'!H13 -> 1.62 | H6: ='[2]1-2, 11-16, 25-30 сент.'!I13 -> 6.1 | I6: ='[2]1-2, 11-16, 25-30 сент.'!J13 -> 6.92
A7: ='[2]1-2, 11-16, 25-30 сент.'!B14 -> хлеб | B7: ='[2]1-2, 11-16, 25-30 сент.'!C14 -> ТТК | C7: ='[2]1-2, 11-16, 25-30 сент.'!D14 -> Хлебная корзина (хлеб пш., хлеб рж.-пш.) | D7: ='[2]1-2, 11-16, 25-30 сент.'!E14 -> 40 | F7: ='[2]1-2, 11-16, 25-30 сент.'!G14 -> 91 | G7: ='[2]1-2, 11-16, 25-30 сент.'!H14 -> 2.52 | H7: ='[2]1-2, 11-16, 25-30 сент.'!I14 -> 0.36 | I7: ='[2]1-2, 11-16, 25-30 сент.'!J14 -> 18.84
A8: ИТОГО | D8: ='[2]1-2, 11-16, 25-30 сент.'!E15 -> 530 | F8: ='[2]1-2, 11-16, 25-30 сент.'!G15 -> 568 | G8: ='[2]1-2, 11-16, 25-30 сент.'!H15 -> 18.07 | H8: ='[2]1-2, 11-16, 25-30 сент.'!I15 -> 17.31 | I8: ='[2]1-2, 11-16, 25-30 сент.'!J15 -> 83.72
